[Event "O2C Doeberl Cup 2019"]
[Site "Canberra"]
[Date "2019.04.21"]
[Round "8.8"]
[White "Renjith, Sravan"]
[Black "Puccini, Jack"]
[Result "0-1"]
[ECO "A26"]
[WhiteElo "1938"]
[BlackElo "2261"]
[Annotator "NA"]
[PlyCount "80"]
[EventDate "2019.04.17"]
[EventType "swiss"]
[EventCountry "AUS"]
[SourceTitle "playchess.com"]
[Source "ChessBase"]
[SourceQuality "1"]
[TimeControl "5400+30"]

1. Nf3 {[%emt 0:00:00]} Nf6 {[%emt 0:00:00]} 2. g3 {[%emt 0:00:00]} g6 {[%emt 0:00:00]} 3. Bg2 {[%emt 0:00:07]} Bg7 {[%emt 0:00:00]} 4. O-O {[%emt 0:00:30]} O-O {[%emt 0:00:00]} 5. c4 {[%emt 0:00:21]} d6 {[%emt 0:00:18]} 6. Nc3 {[%emt 0:00:48]} Nc6 {[%emt 0:00:28]} 7. d3 {[%emt 0:04:52]} e5 {[%emt 0:00:44]} 8. Rb1 {[%emt 0:04:00]} a5 {[%emt 0:00:45]} 9. a3 {[%emt 0:00:26]} Re8 {[%emt 0:00:48]} 10. e4 {[%emt 0:09:48]} Bg4 {[%emt 0:00:23]} 11. h3 {[%emt 0:00:21]} Bxf3 {[%emt 0:00:05]} 12. Bxf3 {[%emt 0:00:18]} Nd4 {[%emt 0:00:16]} 13. Bg2 {[%emt 0:00:12]} c6 {[%emt 0:00:22]} 14. Ne2 {[%emt 0:08:16]} Ne6 15. f4 exf4 {[%emt 0:17:18]} 16. gxf4 {[%emt 0:02:30]} Nh5 {[%emt 0:03:46]} 17. Qe1 {[%emt 0:08:03]} ({Better is} 17. Be3 $11) 17... Nc5 {[%emt 0:09:31]} 18. Qd1 {[%emt 0:07:27]} Qh4 $15 {[%emt 0:11:14]} 19. b4 {[%emt 0:14:46]} axb4 20. axb4 {[%emt 0:00:09]} Ne6 {[%emt 0:02:24]} 21. Be3 {[%emt 0:03:33]} Ra2 {[%emt 0:10:02]} 22. Bf2 {[%emt 0:12:41]} Qe7 {[%emt 0:02:28]} 23. Be3 {[%emt 0:03:35]} f5 {[%emt 0:02:47]} 24. Nc1 {[%emt 0:03:15]} Rxg2+ {[%emt 0:16:48]} 25. Kxg2 {[%emt 0:00:22]} Nexf4+ {[%emt 0:00:26]} 26. Bxf4 {[%emt 0:05:23]} Nxf4+ {[%emt 0:00:07]} 27. Rxf4 {[%emt 0:00:50]} Qg5+ {[%emt 0:00:08]} 28. Rg4 {[%emt 0:00:05]} fxg4 {[%emt 0:00:33]} 29. Qxg4 {[%emt 0:00:07]} Qd2+ {[%emt 0:00:56]} 30. Qe2 {[%emt 0:00:10]} Qc3 {[%emt 0:02:43]} 31. Na2 {[%emt 0:01:18]} Qd4 {[%emt 0:05:21]} 32. Rf1 {[%emt 0:03:02]} Re5 {[%emt 0:03:04]} 33. Qf3 {[%emt 0:01:01]} h6 {[%emt 0:02:20]} 34. h4 {[%emt 0:01:17]} Rh5 {[%emt 0:01:13]} 35. Qg4 {[%emt 0:01:09]} Qxd3 {[%emt 0:01:44]} 36. Qxg6 {[%emt 0:00:47]} Re5 {[%emt 0:00:14]} 37. Qf7+ {[%emt 0:02:57]} Kh8 {[%emt 0:00:46]} 38. Rg1 {[%emt 0:02:31]} Rxe4 {[%emt 0:01:06]} 39. Kh2 {[%emt 0:01:46]} Be5+ {[%emt 0:00:39]} 40. Kg2 {[%emt 0:00:10]} Qg3+ {[%emt 0:00:16]} 0-1

[Event "O2C Doeberl Cup 2019"]
[Site "Canberra"]
[Date "2019.04.22"]
[Round "9.5"]
[White "Lam, Ross"]
[Black "Tao, Trevor"]
[Result "0-1"]
[ECO "E16"]
[WhiteElo "2000"]
[BlackElo "2364"]
[Annotator "RC"]
[PlyCount "146"]
[EventDate "2019.04.17"]
[EventType "swiss"]
[EventCountry "AUS"]
[SourceTitle "playchess.com"]
[Source "ChessBase"]
[SourceQuality "1"]
[TimeControl "5400+30"]

1. d4 {[%emt 0:00:24]} e6 {[%emt 0:00:00]} 2. c4 {[%emt 0:01:55]} Nf6 {[%emt 0:00:00]} 3. Nf3 {[%emt 0:00:18]} b6 {[%emt 0:00:00]} 4. g3 {[%emt 0:00:13]} Bb7 {[%emt 0:00:03]} 5. Bg2 {[%emt 0:00:06]} Bb4+ {[%emt 0:00:06]} 6. Bd2 {[%emt 0:00:05]} Bxd2+ {[%emt 0:00:06]} 7. Qxd2 {[%emt 0:00:09]} d6 {[%emt 0:01:00]} 8. Nc3 {[%emt 0:00:12]} O-O {[%emt 0:00:56]} 9. O-O {[%emt 0:00:51]} Ne4 {[%emt 0:00:46]} 10. Nxe4 {[%emt 0:04:26]} Bxe4 {[%emt 0:00:05]} 11. Nh4 {[%emt 0:05:17]} Bxg2 {[%emt 0:00:08]} 12. Nxg2 {[%emt 0:00:16]} Nd7 {[%emt 0:00:28]} 13. e4 {[%emt 0:01:28]} Nf6 {[%emt 0:04:24]} 14. f3 {[%emt 0:03:47]} Qe7 {[%emt 0:01:26]} 15. b4 {[%emt 0:13:59]} Rfd8 {[%emt 0:01:52]} 16. d5 {[%emt 0:06:08]} a5 {[%emt 0:02:00]} 17. b5 {[%emt 0:04:38]} Nd7 {[%emt 0:00:16]} 18. Nf4 {[%emt 0:00:10]} Qf6 {[%emt 0:02:37]} 19. Rac1 {[%emt 0:04:31]} Nc5 {[%emt 0:00:22]} 20. Qc3 {[%emt 0:00:57]} Qg5 {[%emt 0:02:29]} 21. Kg2 {[%emt 0:01:12]} Re8 {[%emt 0:01:27]} 22. Rfe1 {[%emt 0:03:59]} e5 {[%emt 0:00:49]} 23. Nd3 {[%emt 0:00:30]} Nd7 {[%emt 0:00:15]} 24. Nf2 {[%emt 0:05:17]} Qg6 {[%emt 0:01:48]} 25. Re3 {[%emt 0:09:00]} Rf8 {[%emt 0:00:32]} 26. Rce1 {[%emt 0:01:16]} f5 {[%emt 0:03:45]} 27. exf5 {[%emt 0:00:21]} Rxf5 {[%emt 0:00:04]} 28. Ne4 {[%emt 0:01:03]} h6 {[%emt 0:01:35]} 29. R1e2 {[%emt 0:01:11]} Raf8 {[%emt 0:00:20]} 30. Rf2 {[%emt 0:01:52]} Kh8 {[%emt 0:01:26]} 31. Qd3 {[%emt 0:00:52]} Qf7 {[%emt 0:01:04]} 32. a4 {[%emt 0:01:37]} Qg8 {[%emt 0:01:19]} 33. Kf1 {[%emt 0:00:33]} Qh7 {[%emt 0:00:57]} 34. Ke2 {[%emt 0:00:44]} R5f7 {[%emt 0:01:11]} 35. h4 {[%emt 0:03:57]} Qf5 {[%emt 0:02:51]} 36. Kd2 {[%emt 0:01:18]} Qh3 {[%emt 0:01:30]} 37. Qf1 {[%emt 0:00:25]} Qf5 {[%emt 0:00:39]} 38. Qd3 {[%emt 0:00:17]} Nf6 {[%emt 0:01:05]} 39. Nxf6 Qxf6 {[%emt 0:00:06]} 40. Qe4 {[%emt 0:02:37]} Qd8 {[%emt 0:00:37]} 41. Qg4 {[%emt 0:02:49]} Rf5 {[%emt 0:01:30]} 42. Ke2 {[%emt 0:01:53]} Qc8 {[%emt 0:03:04]} 43. Qe4 {[%emt 0:06:59]} R5f6 {[%emt 0:00:28]} 44. Rh2 {[%emt 0:02:03]} Kg8 {[%emt 0:01:22]} 45. Kf2 {[%emt 0:03:23]} Qd7 {[%emt 0:00:53]} 46. Kg2 {[%emt 0:00:25]} Kf7 {[%emt 0:00:19]} 47. Rh1 {[%emt 0:00:59]} Ke8 {[%emt 0:02:13]} 48. Rf1 {[%emt 0:01:49]} Kd8 {[%emt 0:00:13]} 49. Ree1 {[%emt 0:00:24]} Kc8 {[%emt 0:01:54]} 50. Re3 {[%emt 0:01:40]} Kb7 {[%emt 0:00:06]} 51. Ree1 {[%emt 0:00:08]} Qf7 {[%emt 0:00:19]} 52. Qg4 {[%emt 0:00:47]} Rf5 {[%emt 0:00:39]} 53. Re3 {[%emt 0:00:52]} h5 {[%emt 0:00:15]} 54. Qe4 {[%emt 0:00:11]} g5 {[%emt 0:00:21]} 55. hxg5 {[%emt 0:00:42]} Rxg5 {[%emt 0:00:06]} 56. Rh1 {[%emt 0:01:14]} Qf4 {[%emt 0:00:23]} 57. Qxf4 exf4 {[%emt 0:01:08]} 58. Re7 {[%emt 0:03:38]} Rxg3+ {[%emt 0:01:44]} 59. Kf2 {[%emt 0:00:05]} Rfg8 {[%emt 0:00:30]} 60. Rxh5 {[%emt 0:00:34]} Rg2+ {[%emt 0:01:02]} 61. Kf1 {[%emt 0:01:02]} Rc2 {[%emt 0:00:41]} 62. Rh6 {[%emt 0:00:56]} Rg3 {[%emt 0:07:16]} 63. Rxd6 {[%emt 0:00:13]} Rxf3+ {[%emt 0:00:04]} 64. Kg1 {[%emt 0:00:50]} Ra3 {[%emt 0:00:25]} 65. Rde6 {[%emt 0:00:22]} Ra1+ {[%emt 0:01:00]} 66. Re1 {[%emt 0:00:04]} Rxe1+ {[%emt 0:00:11]} 67. Rxe1 {[%emt 0:00:04]} Rxc4 {[%emt 0:00:06]} 68. Re7 {[%emt 0:00:48]} Rd4 {[%emt 0:00:47]} 69. Rf7 {[%emt 0:00:16]} Kc8 {[%emt 0:00:16]} 70. Kf2 {[%emt 0:00:44]} Rxa4 {[%emt 0:00:13]} 71. Kf3 {[%emt 0:00:21]} Rd4 {[%emt 0:00:05]} 72. Rxf4 {[%emt 0:00:20]} Rxf4+ {[%emt 0:00:11]} 73. Kxf4 {[%emt 0:00:04]} a4 {[%emt 0:00:06]} 0-1

[Event "O2C Doeberl Cup 2019"]
[Site "Canberra"]
[Date "2019.04.22"]
[Round "9.6"]
[White "Puccini, Jack"]
[Black "Pirotais, Jerome"]
[Result "1/2-1/2"]
[ECO "C12"]
[WhiteElo "2261"]
[BlackElo "2075"]
[Annotator "RC"]
[PlyCount "68"]
[EventDate "2019.04.17"]
[EventType "swiss"]
[EventCountry "AUS"]
[SourceTitle "playchess.com"]
[Source "ChessBase"]
[SourceQuality "1"]
[TimeControl "5400+30"]

1. e4 {[%emt 0:02:57]} e6 {[%emt 0:02:26]} 2. d4 {[%emt 0:00:00]} d5 {[%emt 0:00:09]} 3. Nc3 {[%emt 0:00:00]} Nf6 {[%emt 0:01:57]} 4. Bg5 {[%emt 0:10:44]} Bb4 {[%emt 0:02:33]} 5. e5 {[%emt 0:00:49]} h6 {[%emt 0:00:10]} 6. Be3 {[%emt 0:00:16]} Ne4 {[%emt 0:01:24]} 7. Qg4 {[%emt 0:00:04]} g6 {[%emt 0:00:48]} 8. a3 {[%emt 0:00:09]} Bxc3+ {[%emt 0:00:20]} 9. bxc3 {[%emt 0:00:07]} c5 {[%emt 0:00:06]} 10. Bd3 {[%emt 0:00:24]} h5 {[%emt 0:07:53]} 11. Qh3 {[%emt 0:02:59]} Nxc3 {[%emt 0:03:08]} 12. dxc5 {[%emt 0:00:56]} d4 {[%emt 0:00:27]} 13. Bd2 {[%emt 0:02:57]} Nd7 {[%emt 0:08:48]} 14. Nf3 {[%emt 0:20:25]} Nxc5 {[%emt 0:01:53]} 15. O-O {[%emt 0:03:29]} Nxd3 {[%emt 0:09:48]} 16. cxd3 {[%emt 0:00:06]} b6 {[%emt 0:01:08]} 17. Bg5 {[%emt 0:02:59]} Qd5 {[%emt 0:04:25]} 18. Bf6 {[%emt 0:00:37]} O-O {[%emt 0:00:53]} 19. Rfe1 {[%emt 0:06:00]} Ba6 {[%emt 0:10:21]} 20. Ng5 {[%emt 0:13:06]} Qb5 {[%emt 0:02:16]} 21. g4 {[%emt 0:11:14]} Qxd3 {[%emt 0:01:23]} 22. f3 {[%emt 0:01:18]} Nd5 {[%emt 0:16:17]} 23. Ne4 {[%emt 0:00:54]} Nf4 {[%emt 0:06:39]} 24. Qg3 {[%emt 0:00:48]} Qf1+ {[%emt 0:04:22]} 25. Rxf1 {[%emt 0:00:20]} Ne2+ {[%emt 0:00:02]} 26. Kg2 {[%emt 0:04:33]} Nxg3 {[%emt 0:00:03]} 27. hxg3 {[%emt 0:00:17]} Bxf1+ {[%emt 0:00:06]} 28. Rxf1 {[%emt 0:00:04]} Rfc8 {[%emt 0:00:50]} 29. gxh5 {[%emt 0:00:54]} Rc2+ {[%emt 0:00:12]} 30. Nf2 {[%emt 0:00:12]} Rac8 {[%emt 0:01:02]} 31. Rh1 {[%emt 0:01:49]} Rxf2+ {[%emt 0:02:43]} 32. Kxf2 {[%emt 0:00:06]} Rc2+ {[%emt 0:00:02]} 33. Kg1 {[%emt 0:00:10]} d3 {[%emt 0:00:05]} 34. Bg5 {[%emt 0:03:14]} d2 {[%emt 0:01:07]} 1/2-1/2

[Event "O2C Doeberl Cup 2019"]
[Site "Canberra"]
[Date "2019.04.22"]
[Round "9.7"]
[White "Clarke, Matthew"]
[Black "Hu, Jason"]
[Result "1-0"]
[ECO "D46"]
[WhiteElo "2113"]
[BlackElo "2132"]
[Annotator "ChessBase"]
[PlyCount "97"]
[EventDate "2019.04.17"]
[EventType "swiss"]
[EventCountry "AUS"]
[SourceTitle "playchess.com"]
[Source "ChessBase"]
[SourceQuality "1"]
[TimeControl "5400+30"]

1. d4 {[%emt 0:00:00]} d5 {[%emt 0:00:00]} 2. c4 {[%emt 0:00:00]} e6 {[%emt 0:00:00]} 3. Nc3 {[%emt 0:00:00]} c6 {[%emt 0:00:00]} 4. Nf3 {[%emt 0:00:46]} Nf6 {[%emt 0:00:05]} 5. e3 {[%emt 0:00:36]} Nbd7 {[%emt 0:00:13]} 6. Bd3 {[%emt 0:01:06]} Bd6 {[%emt 0:00:11]} 7. O-O {[%emt 0:00:29]} O-O {[%emt 0:00:07]} 8. b3 {[%emt 0:01:58]} Qe7 {[%emt 0:00:12]} 9. Bb2 {[%emt 0:04:15]} dxc4 {[%emt 0:02:53]} 10. Bxc4 {[%emt 0:04:02]} e5 {[%emt 0:00:21]} 11. dxe5 {[%emt 0:06:02]} Nxe5 {[%emt 0:00:08]} 12. Be2 {[%emt 0:05:23]} Bg4 {[%emt 0:01:56]} 13. Nxe5 Qxe5 {[%emt 0:01:06]} 14. g3 {[%emt 0:08:44]} Bh3 {[%emt 0:00:48]} 15. Re1 {[%emt 0:00:10]} Rad8 {[%emt 0:00:25]} 16. Qc2 {[%emt 0:00:52]} Bf5 {[%emt 0:12:49]} 17. e4 {[%emt 0:10:12]} Bg6 {[%emt 0:14:20]} 18. Bd3 {[%emt 0:10:05]} Qh5 {[%emt 0:03:31]} 19. Kg2 {[%emt 0:05:05]} Bc5 {[%emt 0:13:56]} 20. f3 {[%emt 0:06:41]} Qg5 {[%emt 0:08:19]} 21. f4 {[%emt 0:11:16]} Qh6 {[%emt 0:01:26]} 22. h3 {[%emt 0:02:16]} Bb6 {[%emt 0:11:13]} 23. f5 {[%emt 0:04:58]} Bh5 {[%emt 0:03:57]} 24. Bc1 {[%emt 0:01:17]} Bf3+ 25. Kxf3 {[%emt 0:00:37]} Qxh3 {[%emt 0:02:33]} 26. Bf4 {[%emt 0:02:09]} Qg4+ {[%emt 0:08:06]} 27. Kg2 {[%emt 0:00:12]} Nh5 {[%emt 0:00:24]} 28. Rf1 {[%emt 0:05:10]} Be3 {[%emt 0:01:36]} 29. Bc7 {[%emt 0:01:06]} Rd7 {[%emt 0:01:40]} 30. Qe2 {[%emt 0:01:02]} Qg5 {[%emt 0:00:36]} 31. Be5 {[%emt 0:01:16]} f6 {[%emt 0:00:07]} 32. Rf3 {[%emt 0:01:55]} Bd2 {[%emt 0:00:53]} 33. Rd1 {[%emt 0:01:16]} Bc1 {[%emt 0:04:19]} 34. Bc4+ {[%emt 0:00:49]} Kh8 {[%emt 0:00:14]} 35. Rxd7 {[%emt 0:00:24]} fxe5 {[%emt 0:00:07]} 36. Kf2 {[%emt 0:01:05]} Nf6 {[%emt 0:00:42]} 37. Rdd3 {[%emt 0:00:56]} Qh6 {[%emt 0:00:38]} 38. Ke1 {[%emt 0:01:12]} b5 {[%emt 0:01:09]} 39. Be6 {[%emt 0:00:19]} Ng4 {[%emt 0:01:05]} 40. Kd1 {[%emt 0:00:48]} Ba3 {[%emt 0:00:36]} 41. Rd2 {[%emt 0:01:21]} Qh1+ {[%emt 0:01:01]} 42. Rf1 {[%emt 0:00:09]} Ne3+ {[%emt 0:00:30]} 43. Qxe3 {[%emt 0:00:07]} Qxf1+ {[%emt 0:00:04]} 44. Qe1 {[%emt 0:00:13]} Qf3+ {[%emt 0:00:11]} 45. Kc2 {[%emt 0:00:23]} g6 {[%emt 0:01:31]} 46. Qf2 {[%emt 0:00:57]} Qg4 {[%emt 0:00:46]} 47. Qxa7 {[%emt 0:01:07]} Bb4 {[%emt 0:00:20]} 48. Rh2 {[%emt 0:00:26]} h5 {[%emt 0:00:47]} 49. f6 {[%emt 0:00:24]} 1-0

[Event "O2C Doeberl Cup 2019"]
[Site "Canberra"]
[Date "2019.04.22"]
[Round "9.8"]
[White "Padmini, Rout"]
[Black "Solomon, Stephen J"]
[Result "1-0"]
[ECO "B33"]
[WhiteElo "2364"]
[BlackElo "2338"]
[Annotator "RC"]
[PlyCount "99"]
[EventDate "2019.04.17"]
[EventType "swiss"]
[EventCountry "AUS"]
[SourceTitle "playchess.com"]
[Source "ChessBase"]
[SourceQuality "1"]
[TimeControl "5400+30"]

1. e4 {[%emt 0:00:24]} c5 {[%emt 0:00:00]} 2. Nf3 {[%emt 0:00:11]} Nc6 {[%emt 0:00:20]} 3. d4 {[%emt 0:00:46]} cxd4 {[%emt 0:00:09]} 4. Nxd4 {[%emt 0:00:07]} Nf6 {[%emt 0:00:13]} 5. Nc3 {[%emt 0:00:08]} e5 {[%emt 0:00:04]} 6. Ndb5 {[%emt 0:00:07]} d6 {[%emt 0:00:09]} 7. Bg5 {[%emt 0:00:49]} a6 {[%emt 0:00:12]} 8. Na3 {[%emt 0:00:06]} b5 {[%emt 0:01:07]} 9. Nd5 {[%emt 0:00:34]} Be7 {[%emt 0:00:09]} 10. Bxf6 {[%emt 0:00:08]} Bxf6 {[%emt 0:00:06]} 11. c4 {[%emt 0:01:08]} b4 {[%emt 0:00:20]} 12. Nc2 {[%emt 0:00:03]} Rb8 {[%emt 0:00:44]} 13. b3 {[%emt 0:00:52]} O-O {[%emt 0:02:46]} 14. g3 {[%emt 0:04:26]} g6 {[%emt 0:07:15]} 15. h4 {[%emt 0:01:39]} Be6 {[%emt 0:03:56]} 16. Nxf6+ {[%emt 0:09:28]} Qxf6 {[%emt 0:00:16]} 17. Bg2 {[%emt 0:00:06]} Qe7 {[%emt 0:08:04]} 18. h5 {[%emt 0:02:49]} a5 {[%emt 0:01:04]} 19. Qd2 {[%emt 0:01:39]} a4 {[%emt 0:02:21]} 20. hxg6 {[%emt 0:16:31]} fxg6 {[%emt 0:00:33]} 21. O-O {[%emt 0:00:07]} h5 {[%emt 0:09:51]} 22. f4 {[%emt 0:04:21]} Rbc8 {[%emt 0:12:52]} 23. f5 {[%emt 0:11:51]} Bd7 {[%emt 0:06:13]} 24. Rad1 {[%emt 0:01:57]} Rf6 {[%emt 0:03:45]} 25. Ne3 {[%emt 0:03:36]} Nd4 {[%emt 0:01:33]} 26. Nd5 {[%emt 0:00:07]} Qg7 {[%emt 0:00:11]} 27. Nxf6+ {[%emt 0:08:29]} Qxf6 {[%emt 0:00:52]} 28. Qh6 {[%emt 0:00:22]} Qg7 {[%emt 0:05:00]} 29. Qxg6 {[%emt 0:00:24]} Qxg6 {[%emt 0:00:16]} 30. fxg6 {[%emt 0:00:02]} Bg4 {[%emt 0:01:47]} 31. Rd2 {[%emt 0:03:39]} Ra8 {[%emt 0:08:59]} 32. bxa4 {[%emt 0:03:45]} Rxa4 {[%emt 0:00:29]} 33. Rf6 {[%emt 0:01:25]} Ra3 {[%emt 0:03:43]} 34. Kf2 {[%emt 0:00:50]} Ne6 {[%emt 0:05:25]} 35. Rxd6 {[%emt 0:00:41]} Rxa2+ {[%emt 0:00:16]} 36. Kg1 {[%emt 0:00:05]} b3 {[%emt 0:03:43]} 37. Rb6 {[%emt 0:00:26]} Nd4 {[%emt 0:04:28]} 38. Rf7 {[%emt 0:01:48]} Ra8 {[%emt 0:00:16]} 39. Re7 {[%emt 0:06:52]} Be2 {[%emt 0:05:34]} 40. Bf1 {[%emt 0:03:38]} Nf3+ {[%emt 0:01:15]} 41. Kf2 {[%emt 0:00:18]} Bxf1 {[%emt 0:00:10]} 42. Kxf1 {[%emt 0:00:52]} Nd2+ {[%emt 0:00:07]} 43. Ke2 {[%emt 0:01:40]} Nxc4 {[%emt 0:00:18]} 44. Rxb3 {[%emt 0:00:31]} Rd8 {[%emt 0:03:18]} 45. Rd3 {[%emt 0:01:15]} Ra8 {[%emt 0:00:13]} 46. Rdd7 {[%emt 0:00:35]} Rb8 {[%emt 0:01:26]} 47. Rg7+ {[%emt 0:00:27]} Kh8 {[%emt 0:00:04]} 48. Rh7+ {[%emt 0:00:05]} Kg8 {[%emt 0:00:04]} 49. Rdg7+ {[%emt 0:00:06]} Kf8 {[%emt 0:00:02]} 50. Rc7 {[%emt 0:00:18]} 1-0